Cogmind - Beta 10.2 @@@ ROGUE MODE // 2021.10.21 @ 00:07:26 Player: Jezoensis Result: Destroyed by as-70028 with Assembled F-torch Performance ------------- Evolutions (0) 0 Regions Visited (4) 800 Robots Destroyed (21) 105 Value Destroyed (395) 395 Prototype IDs (25) 500 Alien Tech Used (0) 0 Bonus (293) 293 TOTAL SCORE: 2093 Bonus ------- Aligned with FarCom 300 Friendly Fire -7 Cogmind --------- Core Integrity 0/250 Matter 279/300 Energy 99/100 System Corruption 8% Temperature Cool (20) Movement Treading (160) Location -9/Mines Parts ------- > --- POWER (1) -------- (None) > --- PROPULSION (2) --- Light Treads Light Treads > --- UTILITY (2) ------ Large Storage Unit > --- WEAPON (2) ------- Light Assault Rifle > --- INVENTORY (10) --- Light Treads Light Treads Light Treads Light Treads Medium Storage Unit High-capacity Matter Pod (200) Improved Terrain Scanner Mining Laser Peak State ------------ > --- POWER ------------ Ion Engine > --- PROPULSION ------- Light Treads Light Treads > --- UTILITY ---------- Large Storage Unit Improved Terrain Scanner > --- WEAPON ----------- Light Assault Rifle Light Assault Rifle > --- INVENTORY -------- Ion Engine Light Treads Light Treads Light Treads Light Treads Light Treads Light Treads Medium Storage Unit Improved Terrain Scanner Mining Laser [Rating: 9] Favorites ----------- Power Ion Engine Engine Ion Engine Propulsion Light Treads Treads Light Treads Utility Medium Storage Unit Device Improved Terrain Scanner Storage Medium Storage Unit Weapon Light Assault Rifle Energy Gun Small Laser Ballistic Gun Light Assault Rifle Special Weapon Mining Laser Build | -11 -10 -10 -10 -9 ------- Run | Scr Mat Min Exi Min Slots Evolved . | . . . . . Power . | . . . . . Propulsion . | . . . . . Utility . | . . . . . Weapon . | . . . . . Parts Attached 23 | 7 11 1 1 3 Power 4 | 1 2 . 1 . Engine 4 | 1 2 . 1 . Core . | . . . . . Reactor . | . . . . . Propulsion 5 | 2 . . . 3 Treads 5 | 2 . . . 3 Leg . | . . . . . Wheel . | . . . . . Hover . | . . . . . Flight . | . . . . . Utility 6 | 2 4 . . . Device 2 | 1 1 . . . Storage 4 | 1 3 . . . Processor . | . . . . . Hackware . | . . . . . Protection . | . . . . . Artifact . | . . . . . Weapon 8 | 2 5 1 . . Energy Gun 2 | 1 1 . . . Energy Cannon . | . . . . . Ballistic Gun 4 | 1 2 1 . . Ballistic Cannon . | . . . . . Launcher . | . . . . . Special Weapon 2 | . 2 . . . Impact Weapon . | . . . . . Slashing Weapon . | . . . . . Piercing Weapon . | . . . . . Special Melee Weapon . | . . . . . Unidentified Prototypes . | . . . . . Parts Lost 7 | . 2 . . 5 Power 1 | . . . . 1 Propulsion 2 | . . . . 2 Utility 1 | . . . . 1 Weapon 3 | . 2 . . 1 Highest Loss Streak 5 | . 2 . . 5 Average Slot Usage (%) 99 | . 100 100 100 85 Engine 14 | . 14 14 14 14 Treads 27 | . 28 28 28 25 Device 8 | . 5 14 14 8 Storage 18 | . 22 14 14 14 Energy Gun 6 | . 10 . . . Ballistic Gun 20 | . 16 28 28 22 Naked Turns . | . . . . . Heaviest Build 31 | 13 31 24 24 24 Greatest Support 40 | 40 40 40 40 40 Greatest Overweight (x) . | . . . . . Average Overweight (x) . | . . . . . Largest Inventory Capacity 14 | 6 14 10 10 10 Average Capacity 9 | 5 10 10 10 10 Most Carried 12 | 4 12 10 10 10 Average Carried 8 | 2 8 10 9 8 Final Capacity 10 | 6 10 10 10 10 Final Carried 10 | 4 10 10 10 8 Class Distribution -------------------- 100% | Mutant Dominant Class ---------------- Mutant | -10/Materials Mutant | -10/Mines Mutant | -10/Exiles Mutant | -9/Mines Resources | -11 -10 -10 -10 -9 ----------- Run | Scr Mat Min Exi Min Matter Collected 563 | 291 202 . 56 14 Remotely . | . . . . . Salvage Created 824 | 153 645 . . 26 Parts 46 | 9 37 . . . Haulers Intercepted 2 | . 2 . . . Recyclers Shooed 1 | . 1 . . . Parts Field Recycled . | . . . . . Retrieved Matter . | . . . . . Parts Self-Destructed . | . . . . . Prevented . | . . . . . Kills | -11 -10 -10 -10 -9 ------- Run | Scr Mat Min Exi Min Combat Hostiles Destroyed 12 | . 10 . . 2 Guns 12 | . 10 . . 2 Classes Destroyed 7 | 2 4 . . 1 Tunneler 3 | 3 . . . . Hauler 2 | . 2 . . . Recycler 3 | 1 2 . . . Watcher 3 | . 3 . . . Swarmer 3 | . 3 . . . Grunt 7 | . 7 . . . Assembled 2 | . . . . 2 Best Kill Streak 4 | 4 4 . . 1 Combat Bots Only 3 | . 3 . . 1 Max Kills in Single Turn 1 | 1 1 . . 1 Gunslinging . | . . . . . Exploded . | . . . . . Melee . | . . . . . Uniques/NPCs Destroyed . | . . . . . Combat | -11 -10 -10 -10 -9 -------- Run | Scr Mat Min Exi Min Damage Taken 1286 | . 556 . . 730 Core 250 | . 79 . . 171 Absorbed by Shields . | . . . . . Core Remaining (%) 100 | 100 . . . . Volleys Fired 82 | 7 54 . . 21 Largest 2 | 2 2 . . 2 Hottest 100 | 60 100 . . 40 Shots Fired 147 | 14 103 . . 30 Gun 143 | 14 99 . . 30 Cannon . | . . . . . Launcher . | . . . . . Special 4 | . 4 . . . Kinetic 101 | 7 64 . . 30 Thermal 46 | 7 39 . . . Explosive . | . . . . . Electromagnetic . | . . . . . Robot Hit Streak 12 | 2 12 . . 4 Robot Miss Streak 5 | 2 5 . . 2 Penetration Max . | . . . . . Secondary Targets 3 | . 2 . . 1 Max Gunslinging Chain 1 | . 1 . . 1 Shots Hit Robots 96 | 7 70 . . 19 Core Hits 49 | 5 33 . . 11 Critical Hits . | . . . . . Critical Kills . | . . . . . Critical Parts Destroyed . | . . . . . Melee Attacks . | . . . . . Impact . | . . . . . Slashing . | . . . . . Piercing . | . . . . . Sneak Attacks . | . . . . . Combat Hostiles . | . . . . . Follow-up Attacks . | . . . . . Damage Inflicted 988 | 77 752 . . 159 Guns 988 | 77 752 . . 159 Cannons . | . . . . . Explosions . | . . . . . Melee . | . . . . . Ramming . | . . . . . Kinetic 693 | 44 490 . . 159 Thermal 295 | 33 262 . . . Explosive . | . . . . . Electromagnetic . | . . . . . Impact . | . . . . . Slashing . | . . . . . Piercing . | . . . . . Highest Corruption 8 | . . . . 8 Average Corruption 7 | . . . . 7 Corruption Purged . | . . . . . Overload Shots . | . . . . . Overflow Damage . | . . . . . Projectiles . | . . . . . Explosions . | . . . . . Melee . | . . . . . Knockbacks . | . . . . . Impact . | . . . . . Kinetic . | . . . . . Secondary . | . . . . . Self-Inflicted Damage . | . . . . . Shots . | . . . . . Rammed . | . . . . . Targets Rammed . | . . . . . Kicked . | . . . . . Crushed . | . . . . . Highest Temperature 96 | . 96 . . 20 Average Temperature 29 | . 29 . . 20 Received Heat Transfer 399 | . 279 . . 120 Siege Activations . | . . . . . Robots Corrupted . | . . . . . Combat Hostiles . | . . . . . Parts Fried . | . . . . . Impact Corruptions . | . . . . . Robots Melted . | . . . . . Combat Hostiles . | . . . . . Parts Melted . | . . . . . Heat Transferred 675 | 75 600 . . . Parts Sabotaged . | . . . . . Parts Stolen . | . . . . . Parts Stripped . | . . . . . Power Chain Reactions . | . . . . . Missiles Intercepted . | . . . . . Alert | -11 -10 -10 -10 -9 ------- Run | Scr Mat Min Exi Min Peak Influence 175 | 20 175 67 . . Initial 67 | . 13 67 . . Average 80 | 7 94 67 . . Maximum Alert Level . | . . . . . Low Security (%) 100 | 100 100 100 . 100 Level 1 . | . . . . . Level 2 . | . . . . . Level 3 . | . . . . . Level 4 . | . . . . . Level 5 . | . . . . . High Security . | . . . . . Max Security . | . . . . . Squads Dispatched 1 | . 1 . . . Investigation 1 | . 1 . . . Extermination . | . . . . . Reinforcement . | . . . . . Assault . | . . . . . Garrison . | . . . . . Intercept . | . . . . . Construction Impeded . | . . . . . Haulers Reinforced . | . . . . . Stealth | -11 -10 -10 -10 -9 --------- Run | Scr Mat Min Exi Min Distress Signals 1 | . 1 . . . Communications Jammed . | . . . . . Distress Signals . | . . . . . Times Spotted 31 | . 14 . . 17 Peak Tracking Total 16 | . 3 . . 16 Tactical Retreats 1 | . . . . 1 Traps | -11 -10 -10 -10 -9 ------- Run | Scr Mat Min Exi Min Traps Triggered . | . . . . . Indirectly . | . . . . . Trap Hack Attempts . | . . . . . Triggered . | . . . . . Disarmed . | . . . . . Reprogrammed . | . . . . . Reused . | . . . . . Traps Extracted . | . . . . . Installed . | . . . . . Triggered . | . . . . . Machines | -11 -10 -10 -10 -9 ---------- Run | Scr Mat Min Exi Min Machines Disabled 1 | . 1 . . . Max in Single Turn 1 | . 1 . . . Machines Sabotaged . | . . . . . Garrisons Compromised . | . . . . . Overloaded Fab Kills . | . . . . . Fab Network Shutdowns . | . . . . . Hacking | -11 -10 -10 -10 -9 --------- Run | Scr Mat Min Exi Min Machines Accessed 8 | . 7 . 1 . Terminals 7 | . 7 . . . Fabricators . | . . . . . Repair Stations . | . . . . . Recycling Units . | . . . . . Scanalyzers . | . . . . . Garrison Access . | . . . . . Total Hacks 21 | . 20 . 1 . Successful 13 | . 12 . 1 . Failed 7 | . 7 . . . Catastrophic . | . . . . . Database Lockouts 1 | . 1 . . . Manual 16 | . 15 . 1 . Terminals 20 | . 20 . . . Fabricators . | . . . . . Repair Stations . | . . . . . Recycling Units . | . . . . . Scanalyzers . | . . . . . Garrison Access . | . . . . . Terminal Hacks 7 | . 6 . 1 . Part Schematic 1 | . 1 . . . Prototype ID Bank 1 | . 1 . . . Branch Access Points 1 | . 1 . . . Terminal Index 1 | . 1 . . . Locate Traps 1 | . 1 . . . Zone Layout 1 | . 1 . . . EX-Prototype ID Bank 1 | . . . 1 . Fabricator Hacks . | . . . . . Repair Station Hacks . | . . . . . Recycling Unit Hacks . | . . . . . Scanalyzer . | . . . . . Garrison Access Hacks . | . . . . . Unauthorized Hacks 6 | . 6 . . . Terminals 6 | . 6 . . . Track 3 | . 3 . . . Botnet 2 | . 2 . . . Operators 1 | . 1 . . . Fabricators . | . . . . . Repair Stations . | . . . . . Recycling Units . | . . . . . Scanalyzers . | . . . . . Garrison Access . | . . . . . Data Cores Recovered . | . . . . . Used . | . . . . . Hacking Detections 7 | . 7 . . . Full Trace Events 3 | . 3 . . . Feedback Events . | . . . . . Feedback Blocked . | . . . . . Robot Schematics Acquired . | . . . . . Robots Built . | . . . . . Matter . | . . . . . Time . | . . . . . Total Robot Build Rating . | . . . . . Part Schematics Acquired 1 | . 1 . . . Parts Built . | . . . . . Matter . | . . . . . Time . | . . . . . Total Part Build Rating . | . . . . . Parts Repaired . | . . . . . Time . | . . . . . Parts Recycled . | . . . . . Recycled Matter . | . . . . . Retrieved Matter . | . . . . . Retrieved Components . | . . . . . Parts Scanalyzed . | . . . . . Part Schematics Acquired . | . . . . . Parts Damaged . | . . . . . Bothacking | -11 -10 -10 -10 -9 ------------ Run | Scr Mat Min Exi Min Used RIF Installer . | . . . . . Robots Hacked . | . . . . . Non-combat . | . . . . . Combat . | . . . . . Robot Hacks Applied . | . . . . . Relay Couplers Released . | . . . . . Robots Rewired . | . . . . . Allies Hacked . | . . . . . Hacks Repelled . | . . . . . Allies | -11 -10 -10 -10 -9 -------- Run | Scr Mat Min Exi Min Total Allies . | . . . . . Largest Group . | . . . . . Highest-Rated Group . | . . . . . Highest-Rated Ally . | . . . . . Total Orders . | . . . . . Ally Attacks . | . . . . . Total Damage . | . . . . . Kills . | . . . . . Allies Corrupted . | . . . . . Allies Melted . | . . . . . Intel | -11 -10 -10 -10 -9 ------- Run | Scr Mat Min Exi Min Robot Analysis Total . | . . . . . Derelict Logs Recovered 1 | . . 1 . . Drone Launches . | . . . . . Drone Recoveries . | . . . . . Exploration | -11 -10 -10 -10 -9 ------------- Run | Scr Mat Min Exi Min Turns Passed 1393 | 77 783 100 381 52 Spaces Moved 709 | 35 372 62 237 3 Core 13 | 13 . . . . Treads 696 | 22 372 62 237 3 Legs . | . . . . . Wheels . | . . . . . Hover . | . . . . . Flight . | . . . . . Fastest Speed 50 | 50 160 160 160 160 Average Speed 157 | 119 160 160 160 160 Slowest Speed 160 | 160 160 160 160 160 Overloaded Moves . | . . . . . Propulsion Burnouts . | . . . . . Robots Hopped . | . . . . . Cave-ins Triggered . | . . . . . Exploration Rate (%) 35 | 3 74 31 67 4 Regions Visited 4 Branch Regions 3 Pre-discovered Areas . | . . . . . Known Exits Taken 2 | . 1 1 . . Unknown Exits Taken 2 | 1 . . 1 . Scrap Searched . | . . . . . Spaces Dug 4 | . 4 . . . Terrain Destroyed 4 | . 4 . . . Melee . | . . . . . Projectile 4 | . 4 . . . AOE . | . . . . . Terrain Rammed . | . . . . . Walls Destroyed . | . . . . . Machines Disabled . | . . . . . Actions | -11 -10 -10 -10 -9 --------- Run | Scr Mat Min Exi Min Total 835 | 54 453 62 239 27 Wait 5 | . 5 . . . Move 705 | 34 371 61 236 3 Hop . | . . . . . Pick Up 15 | 6 8 . 1 . Fast Attach 6 | 5 . . . 1 Attach 7 | 2 2 . 1 2 Detach . | . . . . . Swap 10 | . 9 1 . . Drop 5 | . 4 . 1 . Fire 82 | 7 54 . . 21 Melee . | . . . . . Ram . | . . . . . Kick . | . . . . . Crush . | . . . . . Escape Stasis . | . . . . . Rewire . | . . . . . Trap . | . . . . . Miscellaneous . | . . . . . Route ------- -11/Scrapyard -10/Materials (discovered 4 exits: [*Mat x3] / *Min) -10/Mines -10/Exiles (discovered 2 exits: [*Min x2]) -9/Mines History --------- Turn | Location | Event 14 | -11/Scrapyard | Discovered new exit (range 15) 78 | -11/Scrapyard | Entered Materials 132 | -10/Materials | Discovered new exit (range 18) 318 | -10/Materials | Build established: Mutant 405 | -10/Materials | Discovered new exit (range 8) 410 | -10/Materials | Central database locked down 579 | -10/Materials | Identified exit to Mines 623 | -10/Materials | Discovered new exit (range 3) 861 | -10/Materials | Entered Mines 879 | -10/Mines | Identified exit to Exiles 954 | -10/Mines | Deemed a non-threat by the Exiles lab entrance 961 | -10/Mines | Entered Exiles 985 | -10/Exiles | Discovered new exit (range 15) 1005 | -10/Exiles | Met 8R-AWN 1029 | -10/Exiles | Met EX-HEX 1072 | -10/Exiles | Met EX-BIN 1089 | -10/Exiles | Aligned with FarCom system 1091 | -10/Exiles | Given EX-Vault access code 1128 | -10/Exiles | Opened EX-Vault 1163 | -10/Exiles | Warned to stay clear of 0b10 Research branches 1193 | -10/Exiles | Exiles lab attacked by MAIN.C 1329 | -10/Exiles | Discovered new exit (range 10) 1342 | -10/Exiles | Entered Mines 1343 | -9/Mines | Assembled infested the area 1348 | -9/Mines | Assisted by a Guerilla fighting off Assembled 1377 | -9/Mines | Core integrity fell below 50% 1383 | -9/Mines | Core integrity fell below 20% 1394 | -9/Mines | Destroyed by as-70028 with Assembled F-torch Last Messages --------------- 01379_ as-75215 suffers critical hit. 01379_ as-75215 destroyed. 01379_ HV Slug penetrates Earth. 01381_ Lgt. Treads severed. 01382_ 0R-LHH(h) heat damages Armor Integrity Analyzer. 01382_ Acquired Lgt. Treads. 01382_ HV Slug penetrates Wall. 01384_ HV Slug penetrates as-45888. 01384_ as-45888 suffers critical hit. 01384_ as-45888 destroyed. 01387_ as-58098 suffers critical hit. 01387_ as-58098 destroyed. 01388_ Acquired 14 matter. 01389_ HV Slug penetrates as-81254. 01389_ as-81254 destroyed. 01389_ HV Slug penetrates Wall. 01391_ Ion Engine destroyed. 01391_ HV Slug penetrates Wall. 01393_ HV Slug penetrates as-29230. 01393_ as-29230 suffers critical hit. Map ----- +----------------------------------------------------+ | ?????????????????????????????????????? | | ?????????????????????????????????????? | | ?????????????????????????????????????? | | ?????????????????????????????????????? | | ?????????????????????????????????????? | | ?????????????????????????????????????? | | ?????????????????????????????????????? | | ?????????????????????????????????????? | | ?????????????????????????????????????? | | ?????????????????????????????????????? | | ?????????????????????????????????????? | | ???????????? ???? ???????????????????? | | ?????????????????????????????????????? | | ?????????????????????????????????????? | | ?????????????????????????????????????? | | ?????????????????????????????????????? | | ??????????????#???#??????????????????? | | ??#??? ??????????????????????????????? | | ????????????###??????#???????????????? | | ???????????? ??????????????????????? | | ?#?????????? a ???????#?#????????????? | | ????????????# #?????????#????????????? | | ????????????# #?????????? ???????????? | | ??????####??; ;??????????????????????? | | ??#??## #;#a###|%% #???????????????? | | ?????# %%@;;a#???????????????????? | | ????## %h;##???????????????????? | | ????# % ##?????? ?????????????? | | ????# % ;#?????????????????????? | | ????## =%#%#?????????????????????? | | ?????#;# ;##;?????????????????????? | | ?????#?## ##??#?????????????????????? | | ????????####??????????????d??????????? | | ?????????#??#????????????????????????? | | ?#????????????????????????d??????????? | | ?##?????????????????#????????????????? | | ?????????????????????????????????????? | | ?????????????????????????????????????? | | ?????????????????????????????????????? | | ?????????????????????????????????????? | | ?????????????????????????????????????? | | ?????????????????????????????????????? | | ?????????????????????????????????????? | | ?????????????????????????????????????? | | | | | | | | | | | | | +----------------------------------------------------+ Best States ------------- Heat Dissipation 25 Energy Generation 10 Energy Capacity 250 Matter Stores 300 Matter Capacity 300 Sight Range 16 Terrain Scan Range 16 Terrain Scan Density 10 Evasion (%) 40 Recoil Reduction 2 Item Schematics ----------------- Lrg. Storage Unit | -10/Materials | Hacked Robot Schematics ------------------ None Fabricated ------------ Nothing Alien Tech Used ----------------- None Achievements -------------- None Challenges ------------ None Game ------ Seed PulseCoolantRifle Manual? 0 Play Time 00:13:09 Cumulative 350.8 hours Start 2021.10.20 @ 23:56:12 End 2021.10.21 @ 00:07:26 Sessions 1 Manual Loads 0 Difficulty Rogue Special Mode None Game No. 169 Rogue 52 Adventurer 115 Explorer 2 Win Type - Total 30 Types 27/2/0/0/0/0/0/0/1 Lore% 54 Gallery% 81 Achievement% 57 Wizard Run 0 Options --------- ASCII 0 Keyboard 1 Movement Numpad Keybinds 0 Fullscreen 1 Font 36/TerminusFine Map View 76x50 Tactical HUD 1 Map Filters NONE Filters NONE Steam 1 RUN: 4ee49d2f-3644-4c3d-9d26-41ceb0ff65c1